fUST/lending_fUST_20240731
["ID","MTS","AMOUNT","RATE_DAILY","PERIOD"]
[333713635,1722397839652,-535.22408806,0.00014559,2]
[333713636,1722397839662,-500.0,0.00014559,2]
[333713637,1722397839673,-515.75955367,0.00014559,2]
[333713638,1722397839685,-2798.75,0.00014559,2]
[333713639,1722397839694,-1412.4,0.00014559,2]
[333713640,1722397839704,-500.0,0.00014559,2]
[333713641,1722397839713,-1228.98,0.00014559,2]
[333713642,1722397839722,-2205.43,0.00014559,2]
[333713643,1722397839732,-500.0,0.00014559,2]
[333713644,1722397839742,-500.0,0.00014559,2]
[333713645,1722397839752,-509.18554936,0.00014559,2]
[333713646,1722397839762,-500.0,0.00014559,2]
[333713647,1722397839773,-2229.7,0.00014559,2]
[333713648,1722397839784,-513.78583575,0.00014559,2]
[333713649,1722397839795,-500.0,0.00014559,2]
[333713650,1722397839806,-512.88636566,0.00014559,2]
[333713651,1722397839817,-500.0,0.00014559,2]
[333713652,1722397839826,-1670.82,0.00014559,2]
[333713653,1722397839837,-511.66394604,0.00014559,2]
[333713654,1722397839847,-3733.25,0.00014559,2]
[333713655,1722397839857,-500.0,0.00014559,2]
[333713656,1722397839867,-500.0,0.00014559,2]
[333713657,1722397839877,-510.7673192,0.00014559,2]
[333713658,1722397839888,-500.0,0.00014559,2]
[333713659,1722397839899,-500.0,0.00014559,2]
[333713661,1722397839910,-1932.92,0.00014559,2]
[333713663,1722397839922,-500.0,0.00014559,2]
[333713664,1722397839931,-506.84641108,0.00014559,2]
[333713665,1722397839941,-509.69014602,0.00014559,2]
[333713666,1722397839951,-508.53973311,0.00014559,2]
[333713667,1722397839961,-508.89401469,0.00014559,2]
[333713668,1722397839971,-500.0,0.00014559,2]
[333713669,1722397839980,-15051.1,0.00014559,2]
[333713670,1722397839990,-500.0,0.00014559,2]
[333713671,1722397839999,-507.60116534,0.00014559,2]
[333713672,1722397840008,-815.35,0.00014559,2]
[333713674,1722397840017,-508.72622523,0.00014559,2]
[333713675,1722397840028,-5250.58,0.00014559,2]
[333713676,1722397840037,-520.17093253,0.00014559,2]
[333713677,1722397840047,-487.03090995,0.00014559,2]
[333713678,1722397840059,-500.0,0.00014559,2]
[333713680,1722397840069,-2154.5,0.00014559,2]
[333713681,1722397840078,-500.0,0.00014559,2]
[333713682,1722397840087,-500.0,0.00014559,2]
[333713683,1722397840096,-510.18011119,0.00014559,2]
[333713684,1722397840105,-514.44022575,0.00014559,2]
[333713685,1722397840115,-500.0,0.00014559,2]
[333713686,1722397840125,-554.03821451,0.00014559,2]
[333713687,1722397840134,-508.23183099,0.00014559,2]
[333713688,1722397840143,-500.0,0.00014559,2]
[333713689,1722397840153,-507.32879132,0.00014559,2]
[333713690,1722397840162,-520.76660711,0.00014559,2]
[333713691,1722397840173,-500.0,0.00014559,2]
[333713692,1722397840184,-509.2388791,0.00014559,2]
[333713693,1722397840193,-835.54,0.00014559,2]
[333713694,1722397840202,-507.21561484,0.00014559,2]
[333713695,1722397840211,-868.91,0.00014559,2]
[333713696,1722397840221,-867.06,0.00014559,2]
[333713698,1722397840231,-500.0,0.00014559,2]
[333713699,1722397840241,-506.87119362,0.00014559,2]
[333713701,1722397840251,-1487.06,0.00014559,2]
[333713703,1722397840262,-252.84267002,0.00014559,2]
[333713704,1722397840271,-500.0,0.00014559,2]
[333713705,1722397840282,-500.0,0.00014559,2]
[333713706,1722397840291,-672.28,0.00014559,2]
[333713707,1722397840303,-500.0,0.00014559,2]
[333713708,1722397840312,-928.14,0.00014559,2]
[333713709,1722397840324,-500.0,0.00014559,2]
[333713710,1722397840334,-1260.74,0.00014559,2]
[333713711,1722397840343,-500.0,0.00014559,2]
[333713712,1722397840355,-500.0,0.00014559,2]
[333713713,1722397840367,-879.2,0.00014559,2]
[333713714,1722397840379,-500.0,0.00014559,2]
[333713715,1722397840390,-500.0,0.00014559,2]
[333713716,1722397840399,-617.83174885,0.00014559,2]
[333713717,1722397840411,-4835.21,0.00014559,2]
[333713718,1722397840420,-500.0,0.00014559,2]
[333713719,1722397840431,-500.0,0.00014559,2]
[333713720,1722397840441,-669.02,0.00014559,2]
[333713721,1722397840452,-308.97168909,0.00014559,2]
[333713722,1722397840462,-932.36,0.00014559,2]
[333713723,1722397840472,-500.0,0.00014559,2]
[333713724,1722397840481,-579.78,0.00014559,2]
[333713725,1722397840493,-500.0,0.00014559,2]
[333713726,1722397840504,-281.82390913,0.00014559,2]
[333713727,1722397840515,-491.66901847,0.00014559,2]
[333713728,1722397840525,-522.68075047,0.00014559,2]
[333713729,1722397840535,-1452.91,0.00014559,2]
[333713730,1722397840546,-2466.09,0.00014559,2]
[333713731,1722397840557,-326.03432267,0.00014559,2]
[333713732,1722397840566,-1789.79117795,0.00014559,2]
[333713733,1722397840579,-2798.75,0.0001456,2]
[333713734,1722397840591,-2798.75,0.0001456,2]
[333713735,1722397840603,-3579.5823559,0.0001456,2]
[333713736,1722397840614,-5369.37353385,0.00014561,2]
[333713737,1722397840626,-584.45319799,0.00014561,2]
[333713738,1722397840636,-510.27245639,0.00014561,2]
[333713739,1722397840647,-500.0,0.00014561,2]
[333713740,1722397840658,-500.0,0.00014561,2]
[333713741,1722397840667,-500.0,0.00014561,2]
[333713742,1722397840676,-375.89863565,0.00014561,2]
[333713743,1722397840685,-500.0,0.00014561,2]
[333713744,1722397840695,-500.0,0.00014561,2]
[333713745,1722397840704,-500.0,0.00014561,2]
[333713746,1722397840712,-511.01073762,0.00014561,2]
[333713747,1722397840722,-500.0,0.00014561,2]
[333713748,1722397840731,-508.42283794,0.00014561,2]
[333713749,1722397840739,-500.0,0.00014561,2]
[333713750,1722397840750,-951.55,0.00014561,2]
[333713751,1722397840759,-1221.36,0.00014561,2]
[333713752,1722397840768,-500.0,0.00014561,2]
[333713753,1722397840777,-310.41910616,0.00014561,2]
[333713754,1722397840786,-576.4,0.00014561,2]
[333713755,1722397840796,-500.0,0.00014561,2]
[333713756,1722397840805,-502.63257513,0.00014561,2]
[333713757,1722397840815,-500.0,0.00014561,2]
[333713758,1722397840824,-628.42,0.00014561,2]
[333713759,1722397840834,-509.07095924,0.00014561,2]
[333713760,1722397840844,-529.94622634,0.00014561,2]
[333713761,1722397840853,-815.24,0.00014561,2]
[333713762,1722397840862,-500.0,0.00014561,2]
[333713763,1722397840871,-514.57702876,0.00014561,2]
[333713764,1722397840881,-1535.51,0.00014561,2]
[333713765,1722397840890,-500.0,0.00014561,2]
[333713766,1722397840900,-631.39,0.00014561,2]
[333713767,1722397840909,-512.70731189,0.00014561,2]
[333713768,1722397840919,-500.0,0.00014561,2]
[333713769,1722397840931,-510.03357421,0.00014561,2]
[333713770,1722397840940,-500.0,0.00014561,2]
[333713771,1722397840953,-1351.18,0.00014561,2]
[333713772,1722397840962,-511.41285629,0.00014561,2]
[333713773,1722397840973,-1189.1,0.00014561,2]
[333713774,1722397840985,-500.0,0.00014561,2]
[333713775,1722397840994,-500.0,0.00014561,2]
[333713776,1722397841005,-500.0,0.00014561,2]
[333713777,1722397841014,-500.0,0.00014561,2]
[333713778,1722397841023,-2129.0,0.00014561,2]
[333713779,1722397841032,-500.0,0.00014561,2]
[333713780,1722397841042,-664.2,0.00014561,2]
[333713781,1722397841051,-500.0,0.00014561,2]
[333713782,1722397841062,-500.0,0.00014561,2]
[333713783,1722397841073,-500.0,0.00014561,2]
[333713784,1722397841083,-500.0,0.00014561,2]
[333713785,1722397841094,-1090.12,0.00014561,2]
[333713786,1722397841105,-1144.66,0.00014561,2]
[333713787,1722397841114,-500.0,0.00014561,2]
[333713788,1722397841123,-396.5499235,0.00014561,2]
[333713789,1722397841133,-500.0,0.00014561,2]
[333713790,1722397841143,-262.13385108,0.00014561,2]
[333713791,1722397841153,-517.14924383,0.00014561,2]
[333713792,1722397841164,-500.0,0.00014561,2]
[333713793,1722397841176,-347.7811101,0.00014561,2]
[333713794,1722397841186,-1017.64,0.00014561,2]
[333713795,1722397841197,-500.0,0.00014561,2]
[333713796,1722397841208,-1070.38,0.00014561,2]
[333713797,1722397841217,-500.0,0.00014561,2]
[333713798,1722397841226,-500.0,0.00014561,2]
[333713799,1722397841236,-500.0,0.00014561,2]
[333713800,1722397841247,-500.0,0.00014561,2]
[333713801,1722397841258,-528.88437405,0.00014561,2]
[333713802,1722397841268,-500.0,0.00014561,2]
[333713803,1722397841277,-504.89447866,0.00014561,2]
[333713804,1722397841287,-500.0,0.00014561,2]
[333713805,1722397841296,-525.0756472,0.00014561,2]
[333713806,1722397841306,-504.89156811,0.00014561,2]
[333713807,1722397841316,-1031.85,0.00014561,2]
[333713808,1722397841325,-2081.01,0.00014561,2]
[333713809,1722397841334,-500.0,0.00014561,2]
[333713810,1722397841344,-500.0,0.00014561,2]
[333713811,1722397841353,-4376.54,0.00014561,2]
[333713812,1722397841362,-500.0,0.00014561,2]
[333713813,1722397841372,-10644.8,0.00014561,2]
[333713814,1722397841381,-809.96,0.00014561,2]
[333713815,1722397841390,-500.0,0.00014561,2]
[333713816,1722397841399,-503.49756742,0.00014561,2]
[333713817,1722397841409,-503.69781008,0.00014561,2]
[333713818,1722397841418,-500.0,0.00014561,2]
[333713819,1722397841428,-500.0,0.00014561,2]
[333713820,1722397841437,-500.0,0.00014561,2]
[333713821,1722397841446,-505.52153762,0.00014561,2]
[333713822,1722397841456,-500.0,0.00014561,2]
[333713823,1722397841465,-500.0,0.00014561,2]
[333713824,1722397841474,-680.45,0.00014561,2]
[333713825,1722397841484,-500.0,0.00014561,2]
[333713826,1722397841493,-559.58,0.00014561,2]
[333713827,1722397841502,-500.0,0.00014561,2]
[333713828,1722397841511,-500.0,0.00014561,2]
[333713829,1722397841521,-774.49,0.00014561,2]
[333713830,1722397841530,-588.92,0.00014561,2]
[333713831,1722397841539,-505.90947082,0.00014561,2]
[333713832,1722397841548,-508.77997571,0.00014561,2]
[333713833,1722397841557,-6317.77,0.00014561,2]
[333713834,1722397841566,-500.0,0.00014561,2]
[333713835,1722397841577,-502.85095012,0.00014561,2]
[333713836,1722397841589,-500.0,0.00014561,2]
[333713837,1722397841598,-928.066604,0.00014561,2]
[333713838,1722397841607,-500.0,0.00014561,2]
[333713839,1722397841617,-504.88825234,0.00014561,2]
[333713840,1722397841627,-281.893627,0.00014561,2]
[333713841,1722397841636,-928.066604,0.00014561,2]
[333713842,1722397841645,-912.91,0.00014561,2]
[333713843,1722397841659,-666.16,0.00014561,2]
[333713844,1722397841671,-229.143841,0.00014561,2]
[333713845,1722397841683,-151.0,0.00014561,2]
[333713846,1722397841692,-500.0,0.00014561,2]
[333713847,1722397841703,-151.0,0.00014561,2]
[333713848,1722397841713,-500.0,0.00014561,2]
[333713849,1722397841723,-1414.5,0.00014561,2]
[333713850,1722397841733,-500.0,0.00014561,2]
[333713851,1722397841744,-511.52633496,0.00014561,2]
[333713852,1722397841755,-622.01,0.00014561,2]
[333713853,1722397841767,-151.0,0.00014561,2]
[333713854,1722397841777,-1878.34,0.00014561,2]
[333713855,1722397841787,-500.0,0.00014561,2]
[333713856,1722397841797,-4085.52,0.00014561,2]
[333713857,1722397841808,-151.0,0.00014561,2]
[333713858,1722397841820,-500.0,0.00014561,2]
[333713859,1722397841829,-2827.47,0.00014561,2]
[333713860,1722397841839,-500.0,0.00014561,2]
[333713861,1722397841851,-500.0,0.00014561,2]
[333713862,1722397841860,-641.67791996,0.00014561,2]
[333713863,1722397841870,-950.610701,0.00014561,2]
[333713864,1722397841880,-500.0,0.00014561,2]
[333713865,1722397841890,-1737.24,0.00014561,2]
[333713866,1722397841900,-950.610701,0.00014561,2]
[333713867,1722397841909,-151.0,0.00014561,2]
[333713868,1722397841918,-2254.72,0.00014561,2]
[333713869,1722397841928,-151.0,0.00014561,2]
[333713870,1722397841937,-561.25,0.00014561,2]
[333713871,1722397841946,-503.51538637,0.00014561,2]
[333713872,1722397841955,-508.8,0.00014561,2]
[333713873,1722397841966,-500.0,0.00014561,2]
[333713874,1722397841975,-548.27177126,0.00014561,2]
[333713875,1722397841984,-166.724766,0.00014565,2]
[333713876,1722397841993,-166.724766,0.00014565,2]
[333713877,1722397842003,-224.453646,0.00014565,2]
[333713878,1722397842013,-224.453646,0.00014565,2]
[333713879,1722397842022,-928.066604,0.00014565,2]
[333713880,1722397842031,-928.066604,0.00014565,2]
[333713881,1722397842040,-151.0,0.00014565,2]
[333713882,1722397842050,-151.0,0.00014565,2]
[333713883,1722397842059,-151.0,0.00014565,2]
[333713884,1722397842069,-500.0,0.00014566,2]
[333713885,1722397842078,-500.0,0.00014566,2]
[333713886,1722397842089,-500.0,0.00014566,2]
[333713887,1722397842098,-6317.77,0.00014566,2]
[333713888,1722397842108,-524.80391742,0.00014566,2]
[333713889,1722397842118,-500.0,0.00014567,2]
[333713890,1722397842129,-500.0,0.00014567,2]
[333713891,1722397842140,-2798.75,0.00014567,2]
[333713892,1722397842150,-2798.75,0.00014567,2]
[333713893,1722397842160,-151.0,0.00014567,2]
[333713894,1722397842170,-151.0,0.00014567,2]
[333713895,1722397842182,-151.0,0.00014567,2]
[333713896,1722397842192,-151.0,0.00014567,2]
[333713897,1722397842202,-500.0,0.00014567,2]
[333713898,1722397842213,-6317.77,0.00014567,2]
[333713899,1722397842224,-151.0,0.00014568,2]
[333713900,1722397842235,-151.0,0.00014568,2]
[333713901,1722397842246,-151.0,0.00014568,2]
[333713902,1722397842257,-151.0,0.00014568,2]
[333713903,1722397842268,-500.0,0.00014569,2]
[333713904,1722397842280,-500.0,0.00014569,2]
[333713905,1722397842292,-500.0,0.00014569,2]
[333713906,1722397842301,-500.0,0.00014569,2]
[333713907,1722397842311,-500.0,0.00014569,2]
[333713908,1722397842319,-300.80638286,0.00014569,2]
[333713909,1722397842329,-2798.75,0.00014569,2]
[333713910,1722397842340,-2798.75,0.00014569,2]
[333713911,1722397842351,-2798.75,0.00014569,2]
[333713912,1722397842361,-166.724766,0.00014569,2]
[333713913,1722397842371,-166.724766,0.00014569,2]
[333713914,1722397842381,-151.0,0.00014569,2]
[333713915,1722397842391,-151.0,0.00014569,2]
[333713916,1722397842401,-151.0,0.00014569,2]
[333713917,1722397842410,-224.453646,0.00014569,2]
[333713918,1722397842421,-224.453646,0.00014569,2]
[333713919,1722397842433,-500.0,0.00014569,2]
[333713920,1722397842443,-500.0,0.00014569,2]
[333713921,1722397842454,-500.0,0.00014569,2]
[333713922,1722397842464,-6317.77,0.00014569,2]
[333713923,1722397842474,-6317.77,0.00014569,2]
[333713924,1722397842484,-4396.18962938,0.00014569,2]
[333713926,1722397842990,-1301.51,0.00014556,2]
[333713927,1722397843001,-500.0,0.00014556,2]
[333713928,1722397843011,-500.0,0.00014561,2]
[333713929,1722397843021,-1921.58037062,0.00014569,2]
[333713930,1722397843031,-79.79358902,0.00014569,2]
[333713940,1722397846326,-1928.34,0.00014556,2]
[333713941,1722397846336,-1928.34,0.00014558,2]
[333713942,1722397846347,-1928.34,0.00014558,2]
[333713943,1722397846357,-1928.34,0.00014559,2]
[333713944,1722397846367,-988.86,0.00014559,2]
[333713945,1722397846377,-1928.34,0.0001456,2]
[333713946,1722397846387,-1928.34,0.0001456,2]
[333713947,1722397846396,-500.0,0.00014561,2]
[333713948,1722397846406,-151.0,0.00014561,2]
[333713949,1722397846416,-500.0,0.00014561,2]
[333713950,1722397846427,-151.0,0.00014567,2]
[333713951,1722397846437,-1928.34,0.00014567,2]
[333713952,1722397846447,-71.20641098,0.00014569,2]
[333713953,1722397846459,-950.610701,0.00014569,2]
[333713954,1722397846469,-950.610701,0.00014569,2]
[333713955,1722397846477,-151.0,0.00014569,2]
[333713956,1722397846487,-1928.34,0.00014569,2]
[333713957,1722397846497,-513.73118334,0.0001457,2]
[333713958,1722397846507,-500.0,0.0001457,2]
[333713959,1722397846517,-519.62893574,0.0001457,2]
[333713960,1722397846526,-510.36753625,0.0001457,2]
[333713961,1722397846535,-2117.3046986,0.0001457,2]
[333713962,1722397846545,-511.21659393,0.0001457,2]
[333713963,1722397846555,-531.73905129,0.0001457,2]
[333713964,1722397846564,-507.54617606,0.0001457,2]
[333713965,1722397846575,-515.33465416,0.0001457,2]
[333713966,1722397846588,-500.0,0.0001457,2]
[333713967,1722397846597,-517.08912517,0.0001457,2]
[333713968,1722397846607,-500.0,0.0001457,2]
[333713969,1722397846617,-507.98304441,0.0001457,2]
[333713970,1722397846627,-500.0,0.0001457,2]
[333713971,1722397846637,-502.88387819,0.0001457,2]
[333713972,1722397846647,-500.0,0.0001457,2]
[333713973,1722397846657,-506.95756558,0.0001457,2]
[333713974,1722397846667,-509.69059219,0.0001457,2]
[333713975,1722397846678,-507.04604425,0.0001457,2]
[333713976,1722397846687,-507.25951795,0.0001457,2]
[333713977,1722397846697,-500.0,0.0001457,2]
[333713978,1722397846706,-817.86,0.0001457,2]
[333713979,1722397846716,-500.0,0.0001457,2]
[333713980,1722397846725,-798.71,0.0001457,2]
[333713981,1722397846735,-520.1367352,0.0001457,2]
[333713982,1722397846744,-500.0,0.0001457,2]
[333713983,1722397846753,-500.0,0.0001457,2]
[333713984,1722397846763,-500.0,0.0001457,2]
[333713985,1722397846772,-500.0,0.0001457,2]
[333713986,1722397846782,-500.0,0.0001457,2]
[333713987,1722397846791,-509.59854303,0.0001457,2]
[333713988,1722397846801,-1492.88,0.0001457,2]
[333713989,1722397846811,-507.21485609,0.0001457,2]
[333713990,1722397846821,-500.0,0.0001457,2]
[333713991,1722397846830,-500.0,0.0001457,2]
[333713992,1722397846840,-500.0,0.0001457,2]
[333713993,1722397846850,-1459.29,0.0001457,2]
[333713994,1722397846861,-500.0,0.0001457,2]
[333713995,1722397846871,-600.93158482,0.0001457,2]
[333713996,1722397846881,-500.0,0.0001457,2]
[333713997,1722397846891,-174.482377,0.0001457,2]
[333713998,1722397846901,-500.0,0.0001457,2]
[333713999,1722397846911,-174.482377,0.0001457,2]
[333714000,1722397846921,-657.85,0.0001457,2]
[333714001,1722397846931,-500.0,0.0001457,2]
[333714002,1722397846940,-500.0,0.0001457,2]
[333714003,1722397846950,-512.15904019,0.0001457,2]
[333714004,1722397846960,-517.83778458,0.0001457,2]
[333714005,1722397846970,-506.55802806,0.0001457,2]
[333714006,1722397846980,-500.0,0.0001457,2]
[333714007,1722397846989,-500.0,0.0001457,2]
[333714008,1722397846999,-151.0,0.0001457,2]
[333714009,1722397847008,-151.0,0.0001457,2]
[333714010,1722397847017,-900.86,0.0001457,2]
[333714011,1722397847027,-355.66013845,0.0001457,2]
[333714012,1722397847036,-500.0,0.0001457,2]
[333714013,1722397847046,-500.0,0.0001457,2]
[333714014,1722397847057,-504.0942915,0.0001457,2]
[333714015,1722397847067,-507.63673888,0.0001457,2]
[333714016,1722397847077,-500.0,0.0001457,2]
[333714017,1722397847086,-500.0,0.0001457,2]
[333714018,1722397847096,-500.0,0.0001457,2]
[333714019,1722397847105,-537.14,0.0001457,2]
[333714020,1722397847115,-500.0,0.0001457,2]
[333714021,1722397847125,-952.73,0.0001457,2]
[333714022,1722397847135,-500.0,0.0001457,2]
[333714023,1722397847145,-1116.55,0.0001457,2]
[333714024,1722397847153,-504.92033221,0.0001457,2]
[333714025,1722397847163,-500.0,0.0001457,2]
[333714026,1722397847173,-500.0,0.0001457,2]
[333714027,1722397847183,-500.0,0.0001457,2]
[333714028,1722397847192,-500.0,0.0001457,2]
[333714029,1722397847201,-3504.84,0.0001457,2]
[333714030,1722397847212,-151.0,0.0001457,2]
[333714031,1722397847222,-500.0,0.0001457,2]
[333714032,1722397847232,-504.86118571,0.0001457,2]
[333714033,1722397847242,-517.54893024,0.0001457,2]
[333714034,1722397847252,-151.0,0.0001457,2]
[333714035,1722397847261,-500.0,0.0001457,2]
[333714036,1722397847271,-503.6892054,0.0001457,2]
[333714037,1722397847280,-514.23004391,0.0001457,2]
[333714038,1722397847290,-933.93,0.0001457,2]
[333714039,1722397847300,-500.0,0.0001457,2]
[333714040,1722397847310,-151.0,0.0001457,2]
[333714041,1722397847319,-151.0,0.0001457,2]
[333714042,1722397847329,-151.0,0.0001457,2]
[333714043,1722397847339,-198.023647,0.0001457,2]
[333714044,1722397847349,-478.46949852,0.0001457,2]
[333714045,1722397847358,-530.44956831,0.0001457,2]
[333714046,1722397847368,-500.0,0.0001457,2]
[333714047,1722397847378,-538.81588679,0.0001457,2]
[333714048,1722397847388,-500.0,0.0001457,2]
[333714049,1722397847398,-500.0,0.0001457,2]
[333714050,1722397847408,-166.724766,0.0001457,2]
[333714051,1722397847417,-513.16094682,0.0001457,2]
[333714052,1722397847426,-151.0,0.0001457,2]
[333714053,1722397847436,-151.0,0.0001457,2]
[333714054,1722397847446,-166.724766,0.0001457,2]
[333714055,1722397847456,-295.693657,0.0001457,2]
[333714056,1722397847466,-500.0,0.0001457,2]
[333714057,1722397847476,-151.0,0.0001457,2]
[333714058,1722397847485,-151.0,0.0001457,2]
[333714059,1722397847495,-151.0,0.0001457,2]
[333714060,1722397847506,-224.453646,0.0001457,2]
[333714061,1722397847516,-224.453646,0.0001457,2]
[333714062,1722397847526,-928.066604,0.0001457,2]
[333714063,1722397847535,-928.066604,0.0001457,2]
[333714064,1722397847545,-928.066604,0.0001457,2]
[333714065,1722397847555,-928.066604,0.0001457,2]
[333714066,1722397847565,-151.0,0.0001457,2]
[333714067,1722397847574,-160.952147,0.0001457,2]
[333714068,1722397847586,-151.0,0.0001457,2]
[333714069,1722397847596,-950.610701,0.0001457,2]
[333714070,1722397847605,-950.610701,0.0001457,2]
[333714071,1722397847615,-151.0,0.0001457,2]
[333714072,1722397847624,-11229.68827326,0.0001457,5]
[333714073,1722397847634,-26118.64446192,0.00014571,5]
[333714074,1722397847644,-514.58319949,0.00014571,2]
[333714075,1722397847654,-500.0,0.00014571,2]
[333714076,1722397847667,-500.0,0.00014571,2]
[333714077,1722397847678,-500.0,0.00014571,2]
[333714078,1722397847688,-517.32007603,0.00014571,2]
[333714079,1722397847698,-527.5229543,0.00014571,2]
[333714080,1722397847708,-579.15,0.00014571,2]
[333714081,1722397847717,-509.21531237,0.00014571,2]
[333714082,1722397847727,-500.0,0.00014571,2]
[333714083,1722397847737,-503.64397371,0.00014571,2]
[333714084,1722397847747,-689.92,0.00014571,2]
[333714085,1722397847757,-500.0,0.00014571,2]
[333714086,1722397847767,-500.0,0.00014571,2]
[333714087,1722397847776,-505.06583988,0.00014571,2]
[333714088,1722397847786,-500.0,0.00014571,2]
[333714089,1722397847796,-529.77847696,0.00014571,2]
[333714090,1722397847807,-500.0,0.00014571,2]
[333714091,1722397847816,-510.57841925,0.00014571,2]
[333714092,1722397847826,-500.0,0.00014571,2]
[333714093,1722397847836,-514.34482596,0.00014571,2]
[333714094,1722397847846,-500.0,0.00014571,2]
[333714095,1722397847857,-503.21191401,0.00014571,2]
[333714096,1722397847867,-510.92774998,0.00014571,2]
[333714097,1722397847877,-502.73259167,0.00014571,2]
[333714098,1722397847887,-505.90791068,0.00014571,2]
[333714099,1722397847897,-500.0,0.00014571,2]
[333714100,1722397847907,-470.48144692,0.00014571,2]
[333714101,1722397847917,-500.0,0.00014571,2]
[333714102,1722397847927,-500.0,0.00014571,2]
[333714103,1722397847937,-1144.13,0.00014571,2]
[333714104,1722397847947,-511.68792644,0.00014571,2]
[333714105,1722397847956,-513.99848155,0.00014571,2]
[333714106,1722397847966,-500.0,0.00014571,2]
[333714107,1722397847975,-500.0,0.00014571,2]
[333714108,1722397847986,-308.75800979,0.00014571,2]
[333714109,1722397847996,-504.37103172,0.00014571,2]
[333714110,1722397848007,-500.0,0.00014571,2]
[333714111,1722397848017,-500.0,0.00014571,2]
[333714112,1722397848028,-500.0,0.00014571,2]
[333714113,1722397848040,-509.35032386,0.00014571,2]
[333714114,1722397848051,-538.45,0.00014571,2]
[333714115,1722397848062,-151.0,0.00014571,2]
[333714116,1722397848072,-504.27103133,0.00014571,2]
[333714117,1722397848082,-521.19551336,0.00014571,2]
[333714118,1722397848092,-500.0,0.00014571,2]
[333714119,1722397848101,-516.5199181,0.00014571,2]
[333714120,1722397848110,-195.42871971,0.00014571,2]
[333714121,1722397848120,-500.0,0.00014571,2]
[333714122,1722397848129,-500.0,0.00014571,2]
[333714123,1722397848140,-514.62510934,0.00014571,2]
[333714124,1722397848149,-507.30253044,0.00014571,2]
[333714125,1722397848159,-393.4080722,0.00014571,2]
[333714126,1722397848169,-506.77306628,0.00014571,2]
[333714127,1722397848179,-500.0,0.00014571,2]
[333714128,1722397848188,-443.64344552,0.00014571,2]
[333714129,1722397848198,-500.0,0.00014571,2]
[333714130,1722397848207,-500.0,0.00014571,2]
[333714131,1722397848216,-539.78580698,0.00014571,2]
[333714132,1722397848226,-500.0,0.00014571,2]
[333714133,1722397848235,-505.12273513,0.00014571,2]
[333714134,1722397848245,-500.0,0.00014571,2]
[333714135,1722397848254,-507.87223198,0.00014571,2]
[333714136,1722397848264,-500.0,0.00014571,2]
[333714137,1722397848274,-500.0,0.00014571,2]
[333714138,1722397848283,-500.0,0.00014571,2]
[333714139,1722397848292,-174.482377,0.00014571,2]
[333714140,1722397848301,-174.482377,0.00014571,2]
[333714141,1722397848311,-500.0,0.00014571,2]
[333714142,1722397848320,-500.0,0.00014571,2]
[333714143,1722397848330,-500.0,0.00014571,2]
[333714144,1722397848340,-404.62002121,0.00014571,2]
[333714145,1722397848349,-500.0,0.00014571,2]
[333714146,1722397848358,-500.0,0.00014571,2]
[333714147,1722397848368,-500.0,0.00014571,2]
[333714148,1722397848378,-151.0,0.00014571,2]
[333714149,1722397848388,-500.0,0.00014571,2]
[333714150,1722397848397,-500.0,0.00014571,2]
[333714151,1722397848407,-186.912454,0.00014571,2]